2CCN - Level 2 Cost Centre Name,,9CCN - Level 9 Cost Centre Name,9CCC - Level 9 Cost Centre Code,9AN - Level 9 Account Name,9AC - Level 9 Account Code,Date posted,Date of transaction,Originating Account Name,Merchant Name,MerchantCity,Original Amount,Conversion Rate,Billed Amount,DebitCredit,Originating Account Number,MCC/SIC Code,MCC Description,ReferenceNbr,Statement Cycle,AccountName
Gloucester City Council,23UE,REGISTRATION OF ELECTORS,RS400,FEES FOR SERVICES RECEIVED,5350,16/04/2015,15/04/2015,REDACTED,WWW.ICO.GOV.UK,03031231113 W,500,1,500,Debit,471565******5551,9399,GOVERNMENT SERVICES NOT ELSEWHERE CLASSIFIED,7.45792E+22,02/05/2015,GLOUCESTER CC
Gloucester City Council,23UE,HOMELESSNESS,CH120,BOARD AND LODGING,5515,20/04/2015,16/04/2015,REDACTED,PREMIER INN44521220,GLOUCESTER,240,1,240,Debit,471565******1443,3811,PREMIER INN,7.40195E+22,02/05/2015,GLOUCESTER CC
Gloucester City Council,23UE,HOMELESSNESS,CH120,BOARD AND LODGING,5515,22/04/2015,21/04/2015,REDACTED,TRAVELODGE WEBSITE,RESERVATION,678,1,678,Debit,471565******1443,3615,TRAVELODGE,7.44247E+22,02/05/2015,GLOUCESTER CC
Gloucester City Council,23UE,HOMELESSNESS,CH120,BOARD AND LODGING,5515,22/04/2015,20/04/2015,REDACTED,PREMIER INN44521220,GLOUCESTER,134,1,134,Debit,471565******1443,3811,PREMIER INN,7.40195E+22,02/05/2015,GLOUCESTER CC
Gloucester City Council,23UE,DOCKS COMPLEX - SERVICES,RB100,OPERATIONAL EQUIPMENT <5000,5012,10/04/2015,09/04/2015,REDACTED,B & Q,GLOUCESTER GL,32.89,1,32.89,Debit,471565******8223,5211,LUMBER AND BUILDING MATERIALS STORES,7.45792E+22,02/05/2015,GLOUCESTER CC
Gloucester City Council,23UE,DOCKS COMPLEX - SERVICES,RB100,OPERATIONAL EQUIPMENT <5000,5012,01/05/2015,30/04/2015,REDACTED,TIMPSON LTD,GLOUCESTER,25,1,25,Debit,471565******8223,7251,SHOE REPAIR SHOPS  SHOE SHINE PARLORS & HAT CLEANING SHOPS,7.45792E+22,02/05/2015,GLOUCESTER CC
Gloucester City Council,23UE,RUGBY WORLD CUP,LT450,EVENTS,5952,22/04/2015,21/04/2015,REDACTED,PAYPAL *7BAMBOOSRUG,35314369001,100,1,100,Debit,471565******1326,5947,GIFT  CARD  NOVELTY  AND SOUVENIR SHOPS,7.49989E+22,02/05/2015,GLOUCESTER CC
Gloucester City Council,23UE,HMO LICENCES,HE520,OPERATIONAL EQUIPMENT <5000,5012,08/04/2015,07/04/2015,REDACTED,WWW.BII.ORG,CAMBERLEY,10.75,1,10.75,Debit,471565******8476,8398,CHARITABLE AND SOCIAL SERVICE ORGANIZATIONS,7.46574E+22,02/05/2015,GLOUCESTER CC
Gloucester City Council,23UE,SAFER STRONGER COMMUNITIES,FP841,OTHER MINOR SUPPLIES SERVICES,5590,08/04/2015,07/04/2015,REDACTED,Amazon Svcs Europe SAR,AMAZON.CO.UK,52.99,1,52.99,Debit,471565******8476,5942,BOOK STORES,7.43132E+22,02/05/2015,GLOUCESTER CC
Gloucester City Council,23UE,CCTV REVENUE BUDGET,FP501,OTHER MINOR SUPPLIES SERVICES,5590,20/04/2015,17/04/2015,REDACTED,WWW.THEIET.ORG,1438767692,70,1,70,Debit,471565******8476,2741,MISCELLANEOUS PUBLISHING & PRINTING,7.45792E+22,02/05/2015,GLOUCESTER CC
Gloucester City Council,23UE,NMS CONTRACT,HI102,STATIONERY,5302,21/04/2015,20/04/2015,REDACTED,HOBBY CRAFT LTD,GLOUCESTER 22,15,1,15,Debit,471565******8476,5970,ARTIST SUPPLY STORES  CRAFT SHOPS,7.48305E+22,02/05/2015,GLOUCESTER CC
Gloucester City Council,23UE,HEALTH ADMINISTRATION,HA200,VOCATIONAL TRAINING,2970,27/04/2015,24/04/2015,REDACTED,ACM TRAINING,LUDLOW,160.79,1,160.79,Debit,471565******8476,8999,PROFESSIONAL SERVICES NOT ELSEWHERE CLASSIFIED,7.40566E+22,02/05/2015,GLOUCESTER CC
Gloucester City Council,23UE,CITY MUSEUM AND ART GALLERY,LM200,ADVERTISING AND PUBLICITY,5702,06/04/2015,04/04/2015,REDACTED,FACEBK *XA8FL7EKW2,650-543-7818,2.55,1,2.55,Debit,471565******9991,7311,ADVERTISING SERVICES,7.43132E+22,02/05/2015,GLOUCESTER CC
Gloucester City Council,23UE,FOLK MUSEUM,LM210,ADVERTISING AND PUBLICITY,5702,06/04/2015,04/04/2015,REDACTED,FACEBK *XA8FL7EKW2,650-543-7818,2.56,1,2.56,Debit,471565******9991,7311,ADVERTISING SERVICES,7.43132E+22,02/05/2015,GLOUCESTER CC
Gloucester City Council,23UE,ARTS EDUCATIONAL PROMOTIONS,LA610,OPERATIONAL EQUIPMENT <5000,5012,16/04/2015,15/04/2015,REDACTED,FASTHOSTS INTERNET,8445830777,19.2,1,19.2,Debit,471565******9991,4816,COMPUTER NETWORK/INFORMATION SERVICES,7.48305E+22,02/05/2015,GLOUCESTER CC
Gloucester City Council,23UE,FOLK MUSEUM,LM210,OPERATIONAL MATERIALS,5070,24/04/2015,23/04/2015,REDACTED,CURRYS SUPERSTORE,CUSTOMER CONT,30,1,30,Debit,471565******9991,5732,ELECTRONIC SALES,7.46982E+22,02/05/2015,GLOUCESTER CC
Gloucester City Council,23UE,FOLK MUSEUM,LM210,OPERATIONAL MATERIALS,5070,24/04/2015,23/04/2015,REDACTED,BOOKER LIMITED GLOUCESTER,GLOUCESTER,160.9,1,160.9,Debit,471565******9991,5811,CATERERS,7.44637E+22,02/05/2015,GLOUCESTER CC
Gloucester City Council,23UE,FOLK MUSEUM,LM210,CATERING PROVISIONS -FOOD,5110,24/04/2015,23/04/2015,REDACTED,CURRYS ONLINE,HEMEL HEMPSTE,159.99,1,159.99,Debit,471565******9991,5732,ELECTRONIC SALES,7.46982E+22,02/05/2015,GLOUCESTER CC
Gloucester City Council,23UE,FOLK MUSEUM,LM210,OPERATIONAL MATERIALS,5070,27/04/2015,24/04/2015,REDACTED,GLOBAL FOODSERVICE,READING,62.21,1,62.21,Debit,471565******9991,5046,COMMERCIAL EQUIPMENT  NOT ELSEWHERE CLASSIFIED,7.48305E+22,02/05/2015,GLOUCESTER CC
Gloucester City Council,23UE,GUILDHALL BAR AND CAF�,LA210,CATERING PROVISIONS -FOOD,5110,08/04/2015,07/04/2015,REDACTED,ICELAND,GLOUCESTER,13.67,1,13.67,Debit,471565******2470,5411,GROCERY STORES  SUPERMARKETS,7.46982E+22,02/05/2015,GLOUCESTER CC
Gloucester City Council,23UE,GUILDHALL EVENTS,LA200,HIRE OF EQUIPMENT,5020,09/04/2015,08/04/2015,REDACTED,STUDIOCARE PROFESS AUD,LIVERPOOL,108,1,108,Debit,471565******2470,5065,ELECTRICAL PARTS AND EQUIPMENT,7.47451E+22,02/05/2015,GLOUCESTER CC
Gloucester City Council,23UE,GUILDHALL BAR AND CAF�,LA210,CATERING PROVISIONS -FOOD,5110,13/04/2015,10/04/2015,REDACTED,ASDA SUPERSTORE,GLOUCESTER,24.01,1,24.01,Debit,471565******2470,5411,GROCERY STORES  SUPERMARKETS,7.46982E+22,02/05/2015,GLOUCESTER CC
Gloucester City Council,23UE,GUILDHALL BAR AND CAF�,LA210,CATERING PROVISIONS -FOOD,5110,21/04/2015,20/04/2015,REDACTED,ALDI,GLOUCESTER,5.61,1,5.61,Debit,471565******2470,5411,GROCERY STORES  SUPERMARKETS,7.40195E+22,02/05/2015,GLOUCESTER CC
Gloucester City Council,23UE,CITY MUSEUM CATERING,LM202,HIRE OF EQUIPMENT,5020,24/04/2015,23/04/2015,REDACTED,SAINSBURYS S/MKTS,GLOUCESTER 22,6.99,1,6.99,Debit,471565******2470,5411,GROCERY STORES  SUPERMARKETS,7.45792E+22,02/05/2015,GLOUCESTER CC
Gloucester City Council,23UE,GUILDHALL BAR AND CAF�,LA210,CATERING PROVISIONS -FOOD,5110,30/04/2015,29/04/2015,REDACTED,ASDA SUPERSTORE,GLOUCESTER,9.74,1,9.74,Debit,471565******2470,5411,GROCERY STORES  SUPERMARKETS,7.46982E+22,02/05/2015,GLOUCESTER CC
Gloucester City Council,23UE,CITY MUSEUM CATERING,LM202,HIRE OF EQUIPMENT,5020,30/04/2015,29/04/2015,REDACTED,DUNELM (SOFT FURNISHIN,GLOUCESTER,4.95,1,4.95,Debit,471565******2470,5714,WINDOW COVERING  UPHOLSTERY AND DRAPERY STORES,7.46981E+22,02/05/2015,GLOUCESTER CC
Gloucester City Council,23UE,COUNCIL STREETCARE TEAM,HI101,VOCATIONAL TRAINING,2970,03/04/2015,02/04/2015,REDACTED,THE TRAINLINE.COM,RAIL TICKETS,78.44,1,78.44,Debit,471565******4841,4112,PASSENGER RAILWAYS,7.49989E+22,02/05/2015,GLOUCESTER CC
Gloucester City Council,23UE,DEVELOPMENT MANAGEMENT,PT200,VOCATIONAL TRAINING,2970,10/04/2015,09/04/2015,REDACTED,THE TRAINLINE.COM,RAIL TICKETS,98.43,1,98.43,Debit,471565******4841,4112,PASSENGER RAILWAYS,7.49989E+22,02/05/2015,GLOUCESTER CC
Gloucester City Council,23UE,DEVELOPMENT MANAGEMENT,PT200,VOCATIONAL TRAINING,2970,10/04/2015,09/04/2015,REDACTED,THE TRAINLINE.COM,RAIL TICKETS,81.6,1,81.6,Debit,471565******4841,4112,PASSENGER RAILWAYS,7.49989E+22,02/05/2015,GLOUCESTER CC
Gloucester City Council,23UE,TOURISM MARKETING,LT100,PUBLIC TRANSPORTATION,4061,10/04/2015,09/04/2015,REDACTED,THE TRAINLINE.COM,RAIL TICKETS,15.35,1,15.35,Debit,471565******4841,4112,PASSENGER RAILWAYS,7.49989E+22,02/05/2015,GLOUCESTER CC
Gloucester City Council,23UE,GREEN TRANSPORT POLICY,PJ130,PUBLIC TRANSPORTATION,4061,15/04/2015,14/04/2015,REDACTED,THE TRAINLINE.COM,RAIL TICKETS,78.44,1,78.44,Debit,471565******4841,4112,PASSENGER RAILWAYS,7.49989E+22,02/05/2015,GLOUCESTER CC
Gloucester City Council,23UE,CIVIC ADMIN AND HOSPITALITY,RC210,VEHICLE LICENCES,4015,16/04/2015,15/04/2015,REDACTED,WWW.DVLA.GOV.UK,VEHICLE LICEN,115.25,1,115.25,Debit,471565******4841,9399,GOVERNMENT SERVICES NOT ELSEWHERE CLASSIFIED,7.45792E+22,02/05/2015,GLOUCESTER CC
Gloucester City Council,23UE,ENVIRONMENTAL PLANNING,LM340,PUBLIC TRANSPORTATION,4061,16/04/2015,15/04/2015,REDACTED,THE TRAINLINE.COM,RAIL TICKETS,19.13,1,19.13,Debit,471565******4841,4112,PASSENGER RAILWAYS,7.49989E+22,02/05/2015,GLOUCESTER CC
Gloucester City Council,23UE,COUNCIL STREETCARE TEAM,HI101,VOCATIONAL TRAINING,2970,01/05/2015,30/04/2015,REDACTED,THE TRAINLINE.COM,RAIL TICKETS,-27.7,1,-27.7,Credit,471565******4841,4112,PASSENGER RAILWAYS,7.49989E+22,02/05/2015,GLOUCESTER CC
Gloucester City Council,23UE,ENVIRONMENTAL PLANNING,LM340,VOCATIONAL TRAINING,2970,28/04/2015,27/04/2015,REDACTED,THE TRAINLINE.COM,RAIL TICKETS,17.59,1,17.59,Debit,471565******8839,4112,PASSENGER RAILWAYS,7.49989E+22,02/05/2015,GLOUCESTER CC
Gloucester City Council,23UE,ENVIRONMENTAL PLANNING,LM340,PUBLIC TRANSPORTATION,4061,28/04/2015,27/04/2015,REDACTED,THE TRAINLINE.COM,RAIL TICKETS,25.25,1,25.25,Debit,471565******8839,4112,PASSENGER RAILWAYS,7.49989E+22,02/05/2015,GLOUCESTER CC
Gloucester City Council,23UE,HMO LICENCES,HE520,PUBLIC TRANSPORTATION,4061,30/04/2015,29/04/2015,REDACTED,THE TRAINLINE.COM,RAIL TICKETS,87.72,1,87.72,Debit,471565******8839,4112,PASSENGER RAILWAYS,7.49989E+22,02/05/2015,GLOUCESTER CC
Gloucester City Council,23UE,RUGBY WORLD CUP,LT450,PUBLIC TRANSPORTATION,4061,30/04/2015,29/04/2015,REDACTED,THE TRAINLINE.COM,RAIL TICKETS,171.46,1,171.46,Debit,471565******8839,4112,PASSENGER RAILWAYS,7.49989E+22,02/05/2015,GLOUCESTER CC
Gloucester City Council,23UE,BLACKFRIARS,LA609,FEES FOR SERVICES RECEIVED,5350,03/04/2015,02/04/2015,REDACTED,WILKO RETAIL LIMIT,GLOUCESTER 14,11.3,1,11.3,Debit,471565******7657,5722,HOUSEHOLD APPLIANCE STORES,7.45792E+22,02/05/2015,GLOUCESTER CC
Gloucester City Council,23UE,BLACKFRIARS,LA609,FEES FOR SERVICES RECEIVED,5350,03/04/2015,02/04/2015,REDACTED,POUNDLAND LTD 1167,GLOUCESTER,30,1,30,Debit,471565******7657,5310,DISCOUNT STORES,7.45792E+22,02/05/2015,GLOUCESTER CC
Gloucester City Council,23UE,BLACKFRIARS,LA609,FEES FOR SERVICES RECEIVED,5350,03/04/2015,02/04/2015,REDACTED,POUNDLAND LTD 1167,GLOUCESTER,5,1,5,Debit,471565******7657,5310,DISCOUNT STORES,7.45792E+22,02/05/2015,GLOUCESTER CC
Gloucester City Council,23UE,BLACKFRIARS,LA609,FEES FOR SERVICES RECEIVED,5350,03/04/2015,02/04/2015,REDACTED,B&M RETAIL LTD,HS GLOUCESTER,6.98,1,6.98,Debit,471565******7657,5310,DISCOUNT STORES,7.45792E+22,02/05/2015,GLOUCESTER CC
Gloucester City Council,23UE,BLACKFRIARS,LA609,FEES FOR SERVICES RECEIVED,5350,03/04/2015,02/04/2015,REDACTED,B&M RETAIL LTD,HS GLOUCESTER,36,1,36,Debit,471565******7657,5310,DISCOUNT STORES,7.45792E+22,02/05/2015,GLOUCESTER CC
Gloucester City Council,23UE,BLACKFRIARS,LA609,FEES FOR SERVICES RECEIVED,5350,06/04/2015,03/04/2015,REDACTED,ALDI,GLOUCESTER,20.76,1,20.76,Debit,471565******7657,5411,GROCERY STORES  SUPERMARKETS,7.40195E+22,02/05/2015,GLOUCESTER CC
Gloucester City Council,23UE,GUILDHALL EVENTS,LA200,FEES FOR SERVICES RECEIVED,5350,06/04/2015,04/04/2015,REDACTED,B & Q,GLOUCESTER GL,5.92,1,5.92,Debit,471565******7657,5211,LUMBER AND BUILDING MATERIALS STORES,7.45792E+22,02/05/2015,GLOUCESTER CC
Gloucester City Council,23UE,BLACKFRIARS,LA609,FEES FOR SERVICES RECEIVED,5350,06/04/2015,04/04/2015,REDACTED,POUNDLAND LTD 1167,GLOUCESTER,5,1,5,Debit,471565******7657,5310,DISCOUNT STORES,7.45792E+22,02/05/2015,GLOUCESTER CC
Gloucester City Council,23UE,BLACKFRIARS,LA609,GENERAL REPAIR/MAINT BUILDINGS,3000,08/04/2015,07/04/2015,REDACTED,Amazon Svcs Europe SAR,AMAZON.CO.UK,23.94,1,23.94,Debit,471565******7657,5942,BOOK STORES,7.43132E+22,02/05/2015,GLOUCESTER CC
Gloucester City Council,23UE,GUILDHALL EVENTS,LA200,FEES FOR SERVICES RECEIVED,5350,13/04/2015,10/04/2015,REDACTED,MIPERMIT PARKING-DOM,INTERNET,10,1,10,Debit,471565******7657,7523,AUTOMOBILE PARKING LOTS AND GARAGES,7.47451E+22,02/05/2015,GLOUCESTER CC
Gloucester City Council,23UE,GUILDHALL EVENTS,LA200,FEES FOR SERVICES RECEIVED,5350,15/04/2015,14/04/2015,REDACTED,MIPERMIT PARKING-DOM,INTERNET,10,1,10,Debit,471565******7657,7523,AUTOMOBILE PARKING LOTS AND GARAGES,7.47451E+22,02/05/2015,GLOUCESTER CC
Gloucester City Council,23UE,BLACKFRIARS,LA609,FEES FOR SERVICES RECEIVED,5350,16/04/2015,15/04/2015,REDACTED,MIPERMIT PARKING-DOM,INTERNET,10,1,10,Debit,471565******7657,7523,AUTOMOBILE PARKING LOTS AND GARAGES,7.47451E+22,02/05/2015,GLOUCESTER CC
Gloucester City Council,23UE,GLOUCESTER GUILDHALL,LA100,GENERAL REPAIR/MAINT BUILDINGS,3000,16/04/2015,15/04/2015,REDACTED,WILKO RETAIL LIMIT,GLOUCESTER 14,49.96,1,49.96,Debit,471565******7657,5722,HOUSEHOLD APPLIANCE STORES,7.45792E+22,02/05/2015,GLOUCESTER CC
Gloucester City Council,23UE,GUILDHALL EVENTS,LA200,FEES FOR SERVICES RECEIVED,5350,21/04/2015,20/04/2015,REDACTED,TICKETS,8712200260,204.5,1,204.5,Debit,471565******7657,7922,THEATRICAL PRODUCERS (EXCEPT MOTION PICTURES)  TICKET AGENCIES,7.40566E+22,02/05/2015,GLOUCESTER CC
Gloucester City Council,23UE,GUILDHALL EVENTS,LA200,ADVERTISING AND PUBLICITY,5702,24/04/2015,23/04/2015,REDACTED,WWW.INSTANTPRINT.C,01709 382202,27.99,1,27.99,Debit,471565******7657,7338,QUICK-COPY AND REPRODUCTION SERVICES,7.45792E+22,02/05/2015,GLOUCESTER CC
Gloucester City Council,23UE,GLOUCESTER GUILDHALL,LA100,MAINTENANCE OF EQUIPMENT,5030,27/04/2015,25/04/2015,REDACTED,ALDI,GLOUCESTER,100.97,1,100.97,Debit,471565******7657,5411,GROCERY STORES  SUPERMARKETS,7.40195E+22,02/05/2015,GLOUCESTER CC
Gloucester City Council,23UE,BLACKFRIARS,LA609,FEES FOR SERVICES RECEIVED,5350,28/04/2015,27/04/2015,REDACTED,MIPERMIT PARKING-DOM,INTERNET,10,1,10,Debit,471565******7657,7523,AUTOMOBILE PARKING LOTS AND GARAGES,7.47451E+22,02/05/2015,GLOUCESTER CC
Gloucester City Council,23UE,BLACKFRIARS,LA609,FEES FOR SERVICES RECEIVED,5350,29/04/2015,28/04/2015,REDACTED,MIPERMIT PARKING-DOM,INTERNET,10,1,10,Debit,471565******7657,7523,AUTOMOBILE PARKING LOTS AND GARAGES,7.47451E+22,02/05/2015,GLOUCESTER CC
Gloucester City Council,23UE,BLACKFRIARS,LA609,FEES FOR SERVICES RECEIVED,5350,29/04/2015,28/04/2015,REDACTED,MIPERMIT PARKING-DOM,INTERNET,10,1,10,Debit,471565******7657,7523,AUTOMOBILE PARKING LOTS AND GARAGES,7.47451E+22,02/05/2015,GLOUCESTER CC
Gloucester City Council,23UE,GLOUCESTER GUILDHALL,LA100,FEES FOR SERVICES RECEIVED,5350,01/05/2015,30/04/2015,REDACTED,WILKO RETAIL LIMIT,GLOUCESTER 14,43.99,1,43.99,Debit,471565******7657,5722,HOUSEHOLD APPLIANCE STORES,7.45792E+22,02/05/2015,GLOUCESTER CC
Gloucester City Council,23UE,BUSINESS PLANNING & PERFORMANC,RL500,VOCATIONAL TRAINING,2970,13/04/2015,10/04/2015,REDACTED,DOUBLETREE,TOWER OF LOND,124.16,1,124.16,Debit,471565******3318,3692,DOUBLETREE HOTELS,7.45792E+22,02/05/2015,GLOUCESTER CC
Gloucester City Council,23UE,BUSINESS TRANSFORMATION & TECH,RT700,COMPUTER CONSUMABLES,5422,21/04/2015,20/04/2015,REDACTED,WWW.JA.NET,12358222311,192,1,192,Debit,471565******3318,8699,MEMBERSHIP ORGANIZATIONS NOT ELSEWHERE CLASSIFIED,7.48305E+22,02/05/2015,GLOUCESTER CC
Gloucester City Council,23UE,COUNTRYSIDE UNIT, LP201,VEHICLE LICENCES,4015,16/04/2015,15/04/2015,REDACTED,WWW.DVLA.GOV.UK,VEHICLE LICEN,292.5,1,292.5,Debit,471565******5409,9399,GOVERNMENT SERVICES NOT ELSEWHERE CLASSIFIED,7.45792E+22,02/05/2015,GLOUCESTER CC
Gloucester City Council,23UE,BUSINESS TRANSFORMATION & TECH,RT700,COMPUTER CONSUMABLES,5422,24/04/2015,23/04/2015,REDACTED,Amazon Svcs Europe SAR,AMAZON.CO.UK,14.99,1,14.99,Debit,471565******5409,5942,BOOK STORES,7.43132E+22,02/05/2015,GLOUCESTER CC
Gloucester City Council,23UE,BUSINESS TRANSFORMATION & TECH,RT700,COMPUTER CONSUMABLES,5422,24/04/2015,23/04/2015,REDACTED,Amazon Svcs Europe SAR,AMAZON.CO.UK,2.98,1,2.98,Debit,471565******5409,5942,BOOK STORES,7.43132E+22,02/05/2015,GLOUCESTER CC
Gloucester City Council,23UE,BUSINESS TRANSFORMATION & TECH,RT700,COMPUTER HARDWARE <5000,5420,27/04/2015,24/04/2015,REDACTED,APPLE ONLINE STORE GBP,0845-600-1683,319,1,319,Debit,471565******5409,5732,ELECTRONIC SALES,7.43132E+22,02/05/2015,GLOUCESTER CC
